fUSD/lending_fUSD_20240425
["ID","MTS","AMOUNT","RATE_DAILY","PERIOD"]
[323531156,1714073440765,-733.61,0.00011232,2]
[323531157,1714073440774,-685.57,0.00011232,2]
[323531158,1714073440783,-500.0,0.00011232,2]
[323531159,1714073440792,-500.0,0.00011232,2]
[323531160,1714073440802,-500.0,0.00011232,2]
[323531161,1714073440811,-500.0,0.00011232,2]
[323531162,1714073440820,-584.55,0.00011232,2]
[323531163,1714073440829,-500.83162997,0.00011232,2]
[323531164,1714073440839,-500.0,0.00011232,2]
[323531165,1714073440850,-500.0,0.00011232,2]
[323531166,1714073440863,-639.54,0.00011232,2]
[323531167,1714073440872,-500.0,0.00011232,2]
[323531168,1714073440882,-500.0,0.00011232,2]
[323531169,1714073440891,-134.59976891,0.00011232,2]
[323531170,1714073440903,-1258.49023109,0.00011232,2]
[323531171,1714073440912,-762.51,0.00011232,2]
[323531172,1714073440924,-872.92,0.00011232,2]
[323531173,1714073440934,-500.0,0.00011232,2]
[323531174,1714073440943,-500.0,0.00011232,2]
[323531175,1714073440952,-769.31,0.00011232,2]
[323531176,1714073440962,-2544.39,0.00011232,2]
[323531177,1714073440971,-551.51,0.00011232,2]
[323531178,1714073440980,-500.0,0.00011232,2]
[323531179,1714073440990,-547.72,0.00011232,2]
[323531180,1714073440999,-737.98,0.00011232,2]
[323531181,1714073441008,-2577.82,0.00011232,2]
[323531182,1714073441017,-500.0,0.00011232,2]
[323531183,1714073441026,-1100.87,0.00011232,2]
[323531184,1714073441036,-1134.97976091,0.00011232,2]
[323531185,1714073441047,-4502.14023909,0.00011232,2]
[323531186,1714073441056,-500.48726345,0.00011232,2]
[323531187,1714073441068,-606.90853724,0.00011232,2]
[323531188,1714073441083,-851.47419931,0.00011232,2]
[323531189,1714073441092,-384.75557237,0.00011232,2]
[323531190,1714073441104,-189.56203486,0.00011232,2]
[323531191,1714073441114,-274.61217776,0.00011232,2]
[323531192,1714073441125,-225.38782224,0.00011232,2]
[323531193,1714073441136,-500.0,0.00011232,2]
[323531194,1714073441145,-312.82546758,0.00011232,2]
[323531195,1714073441155,-612.06,0.00011232,2]
[323531196,1714073441165,-500.0,0.00011232,2]
[323531197,1714073441174,-548.84628807,0.00011232,2]
[323531198,1714073441184,-1921.24,0.00011232,2]
[323531199,1714073441196,-500.0,0.00011232,2]
[323531200,1714073441205,-694.86,0.00011232,2]
[323531201,1714073441215,-1048.39,0.00011232,2]
[323531202,1714073441224,-551.74,0.00011232,2]
[323531203,1714073441233,-500.0,0.00011232,2]
[323531204,1714073441242,-845.29,0.00011232,2]
[323531205,1714073441251,-3394.38,0.00011232,2]
[323531206,1714073441260,-500.0,0.00011232,2]
[323531207,1714073441271,-1231.98,0.00011232,2]
[323531208,1714073441282,-500.0,0.00011232,2]
[323531209,1714073441291,-721.19,0.00011232,2]
[323531210,1714073441299,-500.0,0.00011232,2]
[323531211,1714073441310,-1260.73,0.00011232,2]
[323531212,1714073441319,-500.0,0.00011232,2]
[323531213,1714073441328,-500.0,0.00011232,2]
[323531214,1714073441337,-518.95,0.00011232,2]
[323531215,1714073441347,-500.0,0.00011232,2]
[323531216,1714073441359,-500.0,0.00011232,2]
[323531217,1714073441368,-1441.67,0.00011232,2]
[323531218,1714073441378,-500.0,0.00011232,2]
[323531219,1714073441387,-500.0,0.00011232,2]
[323531220,1714073441397,-578.04,0.00011232,2]
[323531221,1714073441406,-1786.41,0.00011232,2]
[323531222,1714073441416,-532.2,0.00011232,2]
[323531223,1714073441425,-887.92,0.00011232,2]
[323531224,1714073441434,-1441.08,0.00011232,2]
[323531225,1714073441445,-629.85,0.00011232,2]
[323531226,1714073441454,-500.0,0.00011232,2]
[323531227,1714073441463,-500.0,0.00011232,2]
[323531228,1714073441472,-1352.96,0.00011232,2]
[323531229,1714073441482,-500.0,0.00011232,2]
[323531230,1714073441491,-500.0,0.00011232,2]
[323531231,1714073441500,-2326.45,0.00011232,2]
[323531232,1714073441510,-1065.0,0.00011232,2]
[323531233,1714073441519,-654.03,0.00011232,2]
[323531234,1714073441528,-4430.52,0.00011232,2]
[323531235,1714073441538,-3174.85,0.00011232,2]
[323531236,1714073441547,-1552.32,0.00011232,2]
[323531237,1714073441557,-500.0,0.00011232,2]
[323531238,1714073441566,-500.0,0.00011232,2]
[323531239,1714073441575,-500.0,0.00011232,2]
[323531240,1714073441585,-520.39,0.00011232,2]
[323531241,1714073441594,-651.74,0.00011232,2]
[323531242,1714073441604,-500.0,0.00011232,2]
[323531243,1714073441613,-843.13,0.00011232,2]
[323531244,1714073441622,-640.16,0.00011232,2]
[323531245,1714073441632,-500.0,0.00011232,2]
[323531246,1714073441641,-500.0,0.00011232,2]
[323531247,1714073441650,-942.48,0.00011232,2]
[323531248,1714073441660,-816.8,0.00011232,2]
[323531249,1714073441669,-4724.68,0.00011232,2]
[323531250,1714073441679,-500.0,0.00011232,2]
[323531251,1714073441687,-500.0,0.00011232,2]
[323531252,1714073441697,-500.0,0.00011232,2]
[323531253,1714073441707,-500.0,0.00011232,2]
[323531254,1714073441716,-500.0,0.00011232,2]
[323531255,1714073441725,-1198.91,0.00011232,2]
[323531256,1714073441734,-517.47,0.00011232,2]
[323531257,1714073441744,-169.9775808,0.00011324,2]
[323531258,1714073441754,-349.4,0.0001137,2]
[323531259,1714073441763,-370.39,0.0001137,2]
[323531260,1714073441772,-5255.19148917,0.00011398,7]
[323531261,1714073441781,-1648.02556689,0.00011406,2]
[323531262,1714073441791,-1070.50799097,0.00011505,3]
[323531263,1714073441800,-500.0,0.00011506,2]
[323531264,1714073441809,-500.0,0.00011506,2]
[323531265,1714073441818,-521.00949181,0.00011506,2]
[323531266,1714073441827,-507.27,0.00011506,2]
[323531267,1714073441838,-500.0,0.00011506,2]
[323531268,1714073441847,-500.0,0.00011506,2]
[323531269,1714073441858,-500.0,0.00011506,2]
[323531270,1714073441869,-500.0,0.00011506,2]
[323531271,1714073441878,-500.0,0.00011506,2]
[323531272,1714073441887,-500.0,0.00011506,2]
[323531273,1714073441897,-500.0,0.00011506,2]
[323531274,1714073441906,-500.0,0.00011506,2]
[323531275,1714073441915,-586.72,0.00011506,2]
[323531276,1714073441924,-500.0,0.00011506,2]
[323531277,1714073441935,-500.0,0.00011506,2]
[323531278,1714073441944,-648.86,0.00011506,2]
[323531279,1714073441954,-696.87,0.00011506,2]
[323531280,1714073441964,-236.48066658,0.00011506,2]
[323531281,1714073441974,-500.0,0.00011506,2]
[323531282,1714073441982,-500.0,0.00011506,2]
[323531283,1714073441991,-801.63,0.00011506,2]
[323531284,1714073442000,-500.0,0.00011506,2]
[323531285,1714073442010,-500.0,0.00011506,2]
[323531286,1714073442019,-563.69,0.00011506,2]
[323531287,1714073442029,-672.11,0.00011506,2]
[323531288,1714073442038,-645.03,0.00011506,2]
[323531289,1714073442048,-500.0,0.00011506,2]
[323531290,1714073442057,-500.0,0.00011506,2]
[323531291,1714073442067,-500.0,0.00011506,2]
[323531292,1714073442077,-582.75,0.00011506,2]
[323531293,1714073442086,-520.43,0.00011506,2]
[323531294,1714073442095,-772.58,0.00011506,2]
[323531295,1714073442105,-500.0,0.00011506,2]
[323531296,1714073442114,-510.89,0.00011506,2]
[323531297,1714073442123,-500.0,0.00011506,2]
[323531298,1714073442133,-500.0,0.00011506,2]
[323531299,1714073442143,-500.0,0.00011506,2]
[323531300,1714073442152,-512.92,0.00011506,2]
[323531301,1714073442162,-500.0,0.00011506,2]
[323531302,1714073442171,-371.32637839,0.00011506,2]
[323531303,1714073442180,-500.0,0.00011506,2]
[323531304,1714073442190,-500.0,0.00011506,2]
[323531305,1714073442200,-492.21174631,0.00011506,2]
[323531306,1714073442210,-500.0,0.00011506,2]
[323531307,1714073442219,-540.72,0.00011506,2]
[323531308,1714073442228,-538.68,0.00011506,2]
[323531309,1714073442238,-290.05,0.00011506,2]
[323531310,1714073442247,-780.98,0.00011506,2]
[323531311,1714073442257,-707.27,0.00011506,2]
[323531312,1714073442271,-500.0,0.00011506,2]
[323531314,1714073442280,-500.0,0.00011506,2]
[323531315,1714073442290,-500.0,0.00011506,2]
[323531317,1714073442299,-500.0,0.00011506,2]
[323531318,1714073442309,-500.0,0.00011506,2]
[323531319,1714073442318,-645.56,0.00011506,2]
[323531320,1714073442328,-500.0,0.00011506,2]
[323531322,1714073442337,-500.0,0.00011506,2]
[323531323,1714073442347,-500.0,0.00011506,2]
[323531324,1714073442357,-500.0,0.00011506,2]
[323531325,1714073442366,-500.0,0.00011506,2]
[323531326,1714073442376,-500.0,0.00011506,2]
[323531327,1714073442385,-500.0,0.00011506,2]
[323531328,1714073442394,-500.0,0.00011506,2]
[323531329,1714073442403,-500.0,0.00011506,2]
[323531330,1714073442413,-500.0,0.00011506,2]
[323531331,1714073442422,-500.0,0.00011506,2]
[323531332,1714073442431,-500.0,0.00011506,2]
[323531333,1714073442441,-500.0,0.00011506,2]
[323531335,1714073442451,-500.0,0.00011506,2]
[323531337,1714073442461,-501.04,0.00011506,2]
[323531339,1714073442471,-500.0,0.00011506,2]
[323531341,1714073442480,-182.5035015,0.00011506,2]
[323531342,1714073442489,-500.0,0.00011506,2]
[323531344,1714073442499,-500.0,0.00011506,2]
[323531346,1714073442509,-565.31,0.00011506,2]
[323531348,1714073442518,-925.12,0.00011506,2]
[323531350,1714073442528,-593.07,0.00011506,2]
[323531352,1714073442537,-500.0,0.00011506,2]
[323531354,1714073442546,-500.0,0.00011506,2]
[323531356,1714073442556,-500.0,0.00011506,2]
[323531357,1714073442566,-500.0,0.00011506,2]
[323531359,1714073442576,-585.67,0.00011506,2]
[323531361,1714073442586,-500.0,0.00011506,2]
[323531363,1714073442595,-500.0,0.00011506,2]
[323531365,1714073442605,-500.0,0.00011506,2]
[323531366,1714073442614,-500.0,0.00011506,2]
[323531367,1714073442624,-911.39,0.00011506,2]
[323531368,1714073442645,-500.0,0.00011506,2]
[323531369,1714073442655,-500.0,0.00011506,2]
[323531370,1714073442664,-526.86,0.00011506,2]
[323531371,1714073442674,-579.8,0.00011506,2]
[323531372,1714073442683,-1089.86,0.00011506,2]
[323531373,1714073442693,-500.0,0.00011506,2]
[323531374,1714073442702,-500.0,0.00011506,2]
[323531375,1714073442711,-987.89,0.00011506,2]
[323531376,1714073442721,-1630.49,0.00011506,2]
[323531377,1714073442731,-500.0,0.00011506,2]
[323531378,1714073442741,-6736.98221973,0.00011506,2]
[323531379,1714073442756,-496.701815,0.00011506,2]
[323531380,1714073442767,-1414.77477214,0.00011506,2]
[323531381,1714073442779,-1393.02296755,0.00011506,2]
[323531393,1714073443986,-500.0,0.00010958,2]
[323531394,1714073443996,-500.0,0.00010958,2]
[323531395,1714073444005,-276.73780675,0.00010958,2]
[323531396,1714073444017,-223.26219325,0.00010958,2]
[323531397,1714073444027,-500.0,0.00010958,2]
[323531398,1714073444037,-500.0,0.00010958,2]
[323531399,1714073444048,-500.0,0.00010958,2]
[323531400,1714073444058,-503.88767196,0.00010958,2]
[323531401,1714073444067,-500.0,0.00011232,2]
[323531402,1714073444076,-500.0,0.00011232,2]
[323531403,1714073444085,-611.81,0.00011506,2]
[323531404,1714073444095,-359.19742713,0.00011506,2]
[323531405,1714073444104,-500.0,0.00011506,2]
[323531406,1714073444113,-1823.25,0.00011506,2]
[323531407,1714073444124,-531.37302265,0.00011506,2]
[323531408,1714073444133,-500.0,0.00011506,2]
[323531409,1714073444142,-1082.45,0.00011506,2]
[323531410,1714073444152,-782.0,0.00011506,2]
[323531411,1714073444161,-591.23837909,0.00011506,2]
[323531412,1714073444173,-4.15162091,0.00011506,2]
[323531413,1714073444182,-618.18,0.00011506,2]
[323531414,1714073444191,-978.18,0.00011506,2]
[323531415,1714073444201,-2406.19211519,0.00011506,2]
[323531416,1714073444217,-739.9595465,0.00011506,2]
[323531417,1714073444228,-3936.49833831,0.00011506,2]
[323531418,1714073444237,-500.0,0.00011506,2]
[323531419,1714073444246,-809.61,0.00011506,2]
[323531420,1714073444255,-1347.79,0.00011506,2]
[323531421,1714073444266,-643.16,0.00011506,2]
[323531422,1714073444276,-500.0,0.00011506,2]
[323531423,1714073444285,-500.0,0.00011506,2]
[323531424,1714073444295,-1357.87,0.00011506,2]
[323531425,1714073444305,-643.23,0.00011506,2]
[323531426,1714073444314,-1130.56,0.00011506,2]
[323531427,1714073444323,-913.3,0.00011506,2]
[323531428,1714073444332,-1303.31,0.00011506,2]
[323531429,1714073444341,-816.25,0.00011506,2]
[323531430,1714073444352,-500.0,0.00011506,2]
[323531431,1714073444362,-582.71,0.00011506,2]
[323531432,1714073444371,-500.0,0.00011506,2]
[323531433,1714073444380,-799.15,0.00011506,2]
[323531434,1714073444390,-500.0,0.00011506,2]
[323531435,1714073444399,-1068.26,0.00011506,2]
[323531436,1714073444409,-569.24,0.00011506,2]
[323531437,1714073444419,-952.63,0.00011506,2]
[323531438,1714073444428,-3137.54735405,0.00011506,2]
[323531439,1714073444442,-849.25322051,0.00011506,2]
[323531440,1714073444454,-679.48173823,0.00011506,2]
[323531441,1714073444468,-1929.70381271,0.00011506,2]
[323531442,1714073444479,-5582.52338136,0.00011506,2]
[323531443,1714073444499,-514.467728,0.00011506,2]
[323531444,1714073444534,-8226.21276514,0.00011506,2]
[323531445,1714073444543,-738.26,0.00011506,2]
[323531446,1714073444552,-3537.25,0.00011506,2]
[323531447,1714073444562,-500.0,0.00011506,2]
[323531448,1714073444571,-500.0,0.00011506,2]
[323531449,1714073444580,-1017.29,0.00011506,2]
[323531450,1714073444590,-2220.30272255,0.00011506,2]
[323531451,1714073444601,-1613.24727745,0.00011506,2]
[323531452,1714073444611,-725.02,0.00011506,2]
[323531453,1714073444620,-500.0,0.00011506,2]
[323531454,1714073444630,-1659.25272256,0.00011506,2]
[323531455,1714073444642,-698.23727744,0.00011506,2]
[323531456,1714073444653,-821.01,0.00011506,2]
[323531457,1714073444663,-582.13,0.00011506,2]
[323531458,1714073444673,-780.48,0.00011506,2]
[323531459,1714073444682,-1123.82,0.00011506,2]
[323531460,1714073444693,-1002.32,0.00011506,2]
[323531461,1714073444704,-738.0,0.00011506,2]
[323531462,1714073444714,-248.33380256,0.00011506,2]
[323531463,1714073444726,-603.58619744,0.00011506,2]
[323531464,1714073444736,-2702.52,0.00011506,2]
[323531465,1714073444746,-500.0,0.00011506,2]
[323531466,1714073444756,-544.5,0.00011506,2]
[323531467,1714073444766,-523.92,0.00011506,2]
[323531468,1714073444776,-733.61,0.00011506,2]
[323531469,1714073444786,-685.57,0.00011506,2]
[323531470,1714073444795,-499.37530364,0.00011506,2]
[323531471,1714073444805,-500.0,0.00011506,2]
[323531472,1714073444815,-389.57,0.00011506,2]
[323531473,1714073444824,-584.55,0.00011506,2]
[323531474,1714073444833,-500.0,0.00011506,2]
[323531475,1714073444843,-639.54,0.00011506,2]
[323531476,1714073444852,-500.0,0.00011506,2]
[323531477,1714073444862,-1393.09,0.00011506,2]
[323531478,1714073444871,-762.51,0.00011506,2]
[323531479,1714073444881,-872.92,0.00011506,2]
[323531480,1714073444890,-500.0,0.00011506,2]
[323531481,1714073444900,-500.0,0.00011506,2]
[323531482,1714073444909,-769.31,0.00011506,2]
[323531483,1714073444918,-2544.39,0.00011506,2]
[323531484,1714073444928,-551.51,0.00011506,2]
[323531485,1714073444937,-547.72,0.00011506,2]
[323531486,1714073444947,-737.98,0.00011506,2]
[323531487,1714073444957,-2577.82,0.00011506,2]
[323531488,1714073444967,-1100.87,0.00011506,2]
[323531489,1714073444977,-500.0,0.00011506,2]
[323531490,1714073444987,-5637.12,0.00011506,2]
[323531491,1714073444996,-1958.87,0.00011506,2]
[323531492,1714073445006,-612.06,0.00011506,2]
[323531493,1714073445015,-500.0,0.00011506,2]
[323531494,1714073445025,-1921.24,0.00011506,2]
[323531495,1714073445034,-500.0,0.00011506,2]
[323531496,1714073445044,-694.86,0.00011506,2]
[323531497,1714073445053,-1048.39,0.00011506,2]
[323531498,1714073445063,-551.74,0.00011506,2]
[323531499,1714073445072,-500.0,0.00011506,2]
[323531500,1714073445081,-845.29,0.00011506,2]
[323531501,1714073445091,-3394.38,0.00011506,2]
[323531502,1714073445100,-608.3,0.00011506,2]
[323531503,1714073445110,-1231.98,0.00011506,2]
[323531504,1714073445119,-500.0,0.00011506,2]
[323531505,1714073445129,-721.19,0.00011506,2]
[323531506,1714073445138,-500.0,0.00011506,2]
[323531507,1714073445147,-1260.73,0.00011506,2]
[323531508,1714073445157,-500.0,0.00011506,2]
[323531509,1714073445166,-500.0,0.00011506,2]
[323531510,1714073445175,-518.95,0.00011506,2]
[323531511,1714073445185,-500.0,0.00011506,2]
[323531512,1714073445194,-500.0,0.00011506,2]
[323531513,1714073445204,-1441.67,0.00011506,2]
[323531514,1714073445214,-255.2327174,0.00011506,2]
[323531515,1714073445223,-578.04,0.00011506,2]
[323531516,1714073445232,-1786.41,0.00011506,2]
[323531517,1714073445242,-532.2,0.00011506,2]
[323531518,1714073445251,-887.92,0.00011506,2]
[323531519,1714073445261,-629.85,0.00011506,2]
[323531520,1714073445271,-1441.08,0.00011506,2]
[323531521,1714073445282,-500.0,0.00011506,2]
[323531522,1714073445292,-500.0,0.00011506,2]
[323531523,1714073445301,-1352.96,0.00011506,2]
[323531524,1714073445311,-500.0,0.00011506,2]
[323531525,1714073445321,-2326.45,0.00011506,2]
[323531526,1714073445331,-1065.0,0.00011506,2]
[323531527,1714073445341,-654.03,0.00011506,2]
[323531530,1714073445353,-4430.52,0.00011506,2]
[323531532,1714073445362,-3174.85,0.00011506,2]
[323531534,1714073445372,-1552.32,0.00011506,2]
[323531535,1714073445382,-500.0,0.00011506,2]
[323531537,1714073445392,-520.39,0.00011506,2]
[323531538,1714073445402,-651.74,0.00011506,2]
[323531540,1714073445412,-843.13,0.00011506,2]
[323531541,1714073445422,-640.16,0.00011506,2]
[323531542,1714073445431,-500.0,0.00011506,2]
[323531543,1714073445441,-942.48,0.00011506,2]
[323531544,1714073445452,-816.8,0.00011506,2]
[323531547,1714073445462,-4724.68,0.00011506,2]
[323531550,1714073445472,-500.0,0.00011506,2]
[323531553,1714073445481,-500.0,0.00011506,2]
[323531557,1714073445491,-500.0,0.00011506,2]
[323531560,1714073445500,-411.89,0.00011506,2]
[323531563,1714073445509,-1198.91,0.00011506,2]
[323531565,1714073445518,-517.47,0.00011506,2]
[323531567,1714073445528,-500.0,0.00011506,2]
[323531569,1714073445537,-169.9775808,0.00011516,2]
[323531571,1714073445546,-284.44,0.00011518,2]
[323531573,1714073445556,-494.08,0.00011648,2]
[323531575,1714073445565,-528.0,0.00011668,2]
[323531577,1714073445575,-4633.3167517,0.0001168,2]
[323531579,1714073445585,-1648.02556689,0.0001168,2]
[323531580,1714073445594,-4633.31675167,0.000117,2]
[323531581,1714073445604,-169.9775808,0.00011708,2]
[323531582,1714073445614,-4633.31675167,0.0001172,2]
[323531583,1714073445623,-4633.31675167,0.0001174,2]
[323531584,1714073445635,-1144.69914817,0.0001176,2]
[323531585,1714073445644,-1132.2177281,0.0001176,2]
[323531586,1714073445654,-4633.31675167,0.0001176,2]
[323531587,1714073445663,-8336.92,0.00011779,2]
[323531588,1714073445672,-500.0,0.00011779,2]
[323531589,1714073445682,-500.0,0.00011779,2]
[323531590,1714073445691,-5906.27,0.00011779,2]
[323531591,1714073445701,-500.0,0.0001178,2]
[323531592,1714073445710,-507.27,0.0001178,2]
[323531593,1714073445720,-500.0,0.0001178,2]
[323531594,1714073445729,-500.0,0.0001178,2]
[323531595,1714073445738,-500.0,0.0001178,2]
[323531596,1714073445748,-500.0,0.0001178,2]
[323531597,1714073445757,-500.0,0.0001178,2]
[323531598,1714073445765,-500.0,0.0001178,2]
[323531599,1714073445776,-500.0,0.0001178,2]
[323531600,1714073445785,-500.0,0.0001178,2]
[323531601,1714073445794,-586.72,0.0001178,2]
[323531602,1714073445803,-500.0,0.0001178,2]
[323531603,1714073445812,-500.0,0.0001178,2]
[323531604,1714073445822,-648.86,0.0001178,2]
[323531605,1714073445831,-696.87,0.0001178,2]
[323531606,1714073445841,-500.0,0.0001178,2]
[323531607,1714073445850,-283.39356236,0.0001178,2]
[323531608,1714073445859,-801.63,0.0001178,2]
[323531609,1714073445869,-500.0,0.0001178,2]
[323531610,1714073445879,-500.0,0.0001178,2]
[323531611,1714073445888,-563.69,0.0001178,2]
[323531612,1714073445897,-672.11,0.0001178,2]
[323531613,1714073445907,-645.03,0.0001178,2]
[323531614,1714073445916,-500.0,0.0001178,2]
[323531615,1714073445929,-500.0,0.0001178,2]
[323531616,1714073445939,-500.0,0.0001178,2]
[323531617,1714073445949,-582.75,0.0001178,2]
[323531618,1714073445959,-520.43,0.0001178,2]
[323531619,1714073445969,-772.58,0.0001178,2]
[323531620,1714073445979,-500.0,0.0001178,2]
[323531621,1714073445988,-510.89,0.0001178,2]
[323531623,1714073445998,-171.37,0.0001178,2]
[323531625,1714073446008,-500.0,0.0001178,2]
[323531627,1714073446017,-500.0,0.0001178,2]
[323531629,1714073446027,-512.92,0.0001178,2]
[323531631,1714073446037,-500.0,0.0001178,2]
[323531633,1714073446046,-500.0,0.0001178,2]
[323531635,1714073446056,-500.0,0.0001178,2]
[323531637,1714073446066,-500.0,0.0001178,2]
[323531639,1714073446076,-540.72,0.0001178,2]
[323531641,1714073446086,-538.68,0.0001178,2]
[323531643,1714073446096,-780.98,0.0001178,2]
[323531644,1714073446106,-707.27,0.0001178,2]
[323531645,1714073446116,-500.0,0.0001178,2]
[323531646,1714073446126,-500.0,0.0001178,2]
[323531647,1714073446135,-500.0,0.0001178,2]
[323531648,1714073446144,-500.0,0.0001178,2]
[323531649,1714073446154,-500.0,0.0001178,2]
[323531650,1714073446164,-645.56,0.0001178,2]
[323531651,1714073446174,-500.0,0.0001178,2]
[323531652,1714073446183,-500.0,0.0001178,2]
[323531653,1714073446193,-500.0,0.0001178,2]
[323531654,1714073446204,-500.0,0.0001178,2]
[323531655,1714073446214,-500.0,0.0001178,2]
[323531656,1714073446223,-500.0,0.0001178,2]
[323531657,1714073446235,-500.0,0.0001178,2]
[323531658,1714073446246,-500.0,0.0001178,2]
[323531659,1714073446257,-257.49507685,0.0001178,2]
[323531660,1714073446270,-500.0,0.0001178,2]
[323531661,1714073446282,-500.0,0.0001178,2]
[323531662,1714073446292,-500.0,0.0001178,2]
[323531663,1714073446302,-500.0,0.0001178,2]
[323531664,1714073446312,-500.0,0.0001178,2]
[323531665,1714073446324,-501.04,0.0001178,2]
[323531666,1714073446334,-500.0,0.0001178,2]
[323531667,1714073446345,-500.0,0.0001178,2]
[323531668,1714073446358,-500.0,0.0001178,2]
[323531669,1714073446369,-565.31,0.0001178,2]
[323531670,1714073446379,-925.12,0.0001178,2]
[323531671,1714073446388,-593.07,0.0001178,2]
[323531672,1714073446398,-500.0,0.0001178,2]
[323531673,1714073446407,-452.28173995,0.0001178,2]
[323531674,1714073446417,-500.0,0.0001178,2]
[323531675,1714073446426,-500.0,0.0001178,2]
[323531676,1714073446436,-585.67,0.0001178,2]
[323531677,1714073446446,-500.0,0.0001178,2]
[323531678,1714073446456,-500.0,0.0001178,2]
[323531679,1714073446465,-500.0,0.0001178,2]
[323531680,1714073446475,-500.0,0.0001178,2]
[323531681,1714073446485,-911.39,0.0001178,2]
[323531682,1714073446494,-500.0,0.0001178,2]
[323531683,1714073446504,-500.0,0.0001178,2]
[323531684,1714073446514,-526.86,0.0001178,2]
[323531685,1714073446523,-4633.31675167,0.0001178,2]
[323531686,1714073446534,-579.8,0.0001178,2]
[323531687,1714073446545,-1089.86,0.0001178,2]
[323531688,1714073446555,-500.0,0.0001178,2]
[323531689,1714073446564,-987.89,0.0001178,2]
[323531690,1714073446574,-611.81,0.0001178,2]
[323531691,1714073446584,-500.0,0.0001178,2]
[323531692,1714073446593,-1823.25,0.0001178,2]
[323531693,1714073446603,-1082.45,0.0001178,2]
[323531694,1714073446613,-782.0,0.0001178,2]
[323531695,1714073446623,-595.39,0.0001178,2]
[323531696,1714073446633,-618.18,0.0001178,2]
[323531697,1714073446643,-978.18,0.0001178,2]
[323531698,1714073446653,-7082.65,0.0001178,2]
[323531699,1714073446665,-500.0,0.0001178,2]
[323531700,1714073446677,-809.61,0.0001178,2]
[323531701,1714073446688,-1347.79,0.0001178,2]
[323531702,1714073446699,-643.16,0.0001178,2]
[323531703,1714073446709,-500.0,0.0001178,2]
[323531704,1714073446719,-500.0,0.0001178,2]
[323531705,1714073446729,-1357.87,0.0001178,2]
[323531706,1714073446738,-643.23,0.0001178,2]
[323531707,1714073446750,-1130.56,0.0001178,2]
[323531708,1714073446759,-913.3,0.0001178,2]
[323531709,1714073446768,-1303.31,0.0001178,2]
[323531710,1714073446778,-816.25,0.0001178,2]
[323531711,1714073446788,-500.0,0.0001178,2]
[323531712,1714073446797,-582.71,0.0001178,2]
[323531713,1714073446807,-500.0,0.0001178,2]
[323531714,1714073446982,-799.15,0.0001178,2]
[323531715,1714073447024,-500.0,0.0001178,2]
[323531716,1714073447035,-1068.26,0.0001178,2]
[323531717,1714073447046,-569.24,0.0001178,2]
[323531718,1714073447055,-952.63,0.0001178,2]
[323531719,1714073447065,-20919.19,0.0001178,2]
[323531720,1714073447074,-738.26,0.0001178,2]
[323531721,1714073447083,-3537.25,0.0001178,2]
[323531722,1714073447093,-500.0,0.0001178,2]